fUST/lending_fUST_20250926
["ID","MTS","AMOUNT","RATE_DAILY","PERIOD"]
[387825675,1758894644363,-1000.0,0.00039521,5]
[387825676,1758894644372,-1000.0,0.00039521,5]
[387825677,1758894644381,-618.39,0.00039544,5]
[387825678,1758894644393,-500.0,0.00039973,2]
[387825679,1758894644402,-1471.71802147,0.0004,28]
[387825683,1758894646050,-914.50681172,0.0004,28]
[387825684,1758894646062,-97613.77516681,0.0004,28]
[387825685,1758894646072,-100000.0,0.0004,14]
[387825687,1758894646082,-1500.0,0.00040068,5]
[387825689,1758894646092,-1500.0,0.00040068,5]
[387825691,1758894646101,-313.9760142,0.00040197,2]
[387825692,1758894646111,-1012.6192814,0.00040521,2]
[387825694,1758894646121,-2000.0,0.00040616,5]
[387825696,1758894646130,-2000.0,0.00040616,5]
[387825697,1758894646141,-313.9760142,0.00040996,2]
[387825698,1758894646151,-100000.0,0.00041,28]
[387825699,1758894646160,-100000.0,0.00041,14]
[387825700,1758894646169,-100000.0,0.00041,14]
[387825701,1758894646179,-37766.97,0.00041096,120]
[387825702,1758894646188,-233.71402077,0.00041096,120]
[387825703,1758894646198,-417.15472785,0.00041096,120]
[387825705,1758894646207,-693.99545191,0.0004115,28]
[387825706,1758894646218,-2500.0,0.00041164,10]
[387825707,1758894646227,-500.0,0.00041164,10]
[387825708,1758894646236,-151.09562093,0.00041646,3]
[387825709,1758894646246,-3000.0,0.00041712,10]
[387825710,1758894646255,-672.95,0.000418,14]
[387825711,1758894646264,-237.54111383,0.00041978,38]
[387825712,1758894646274,-100000.0,0.00042,28]
[387825713,1758894646283,-100000.0,0.00042,14]
[387825714,1758894646292,-152.02818518,0.0004224,120]
[387825715,1758894646302,-521.6774635,0.0004226,10]
[387825716,1758894646405,-7580.78334668,0.0004234,2]
[387825717,1758894646415,-55588.96554514,0.0004244,2]
[387825718,1758894646427,-14320.87151297,0.0004244,2]
[387825719,1758894646450,-1125.72127738,0.0004244,2]
[387825727,1758894657383,333.0271104,0.000199,2]
[387825729,1758894743651,-5000.0,0.00024703,2]
[387825730,1758894841411,230.55553822,0.000199,2]
[387825731,1758894841958,230.55553822,0.00022949,2]
[387825736,1758895012116,395.1217688,0.000199,2]
[387825737,1758895012372,395.12176861,0.00021372,2]
[387825738,1758895013033,395.12176861,0.00022844,2]
[387825747,1758895198640,949.70369543,0.000199,2]
[387825748,1758895198798,949.70369521,0.00021372,2]
[387825749,1758895199397,949.70369521,0.00022844,2]
[387825750,1758895247187,5000.0,0.00023831,2]
[387825751,1758895286028,200000.0,0.00028767,120]
[387825752,1758895349812,-300.0,0.00024702,2]
[387825753,1758895349840,-1200.0,0.00024702,2]
[387825754,1758895349869,-2000.01,0.00024703,2]
[387825755,1758895378296,899.76485518,0.000199,2]
[387825756,1758895379003,899.76485493,0.00021372,2]
[387825759,1758895464791,-5000.0,0.00024355,2]
[387825760,1758895474822,-5000.0,0.00024355,2]
[387825761,1758895474961,-500.0,0.000246,2]
[387825762,1758895474992,-215.22477649,0.000246,2]
[387825763,1758895475314,-4345.63168213,0.00024601,2]
[387825764,1758895475471,-10000.01,0.00024601,2]
[387825765,1758895475651,-4334.99316494,0.00024601,2]
[387825766,1758895475673,-1330.02367012,0.00024601,2]
[387825767,1758895475766,-10000.01,0.00024602,2]
[387825769,1758895484823,-10000.01,0.00024602,2]
[387825770,1758895484994,-10.63851719,0.00024602,2]
[387825771,1758895485026,-356.97990325,0.00024602,2]
[387825772,1758895485058,-500.0,0.00024602,2]
[387825773,1758895485089,-500.0,0.00024602,2]
[387825774,1758895485121,-500.0,0.00024602,2]
[387825775,1758895485155,-500.0,0.00024602,2]
[387825776,1758895485187,-500.0,0.00024602,2]
[387825777,1758895485217,-178.56858109,0.00024602,2]
[387825778,1758895485249,-500.0,0.00024602,2]
[387825779,1758895485280,-500.0,0.00024602,2]
[387825780,1758895485310,-500.0,0.00024602,2]
[387825781,1758895485342,-407.63599694,0.00024602,2]
[387825782,1758895485519,-92.36400306,0.00024602,2]
[387825784,1758895494836,-5000.0,0.00024357,2]
[387825785,1758895494872,-0.01,0.00024602,2]
[387825786,1758895504865,-5000.0,0.00024113,2]
[387825787,1758895504900,-0.01,0.00024602,2]
[387825788,1758895505011,-624.97800676,0.00024602,2]
[387825789,1758895505040,-300.0,0.00024602,2]
[387825790,1758895505069,-300.0,0.00024602,2]
[387825791,1758895505097,-300.0,0.00024602,2]
[387825792,1758895505127,-300.0,0.00024602,2]
[387825793,1758895505215,-6350.05398648,0.00024603,2]
[387825796,1758895514853,-5000.0,0.00024356,2]
[387825797,1758895514892,-0.01,0.00024602,2]
[387825803,1758895524910,-5000.0,0.00024356,2]
[387825804,1758895524946,-0.01,0.00024602,2]
[387825805,1758895527339,-299.98,0.00024602,2]
[387825806,1758895527369,-1200.0,0.00024602,2]
[387825807,1758895527417,-7000.05,0.00024603,2]
[387825812,1758895545039,-5000.0,0.00024357,2]
[387825813,1758895545074,-0.01,0.00024603,2]
[387825815,1758895550318,421.51644577,0.000199,2]
[387825816,1758895550480,421.51644561,0.00022844,2]
[387825817,1758895550982,421.51644561,0.00021372,2]
[387825818,1758895555044,-5000.0,0.00024113,2]
[387825819,1758895564944,-5000.0,0.00024072,2]
[387825820,1758895574982,-5000.0,0.00024072,2]
[387825821,1758895597031,5000.0,0.00023831,2]
[387825822,1758895620191,5000.0,0.00023831,2]
[387825823,1758895643730,0.01,0.00023831,2]
[387825824,1758895643753,4999.99,0.00023831,2]
[387825825,1758895667437,5000.0,0.00023831,2]
[387825826,1758895690352,0.02,0.00023831,2]
[387825827,1758895690375,4999.98,0.00023831,2]
[387825828,1758895713026,2936.57038589,0.00023831,2]
[387825829,1758895721982,1187.70453749,0.000199,2]
[387825830,1758895722394,875.75507662,0.00022844,2]
[387825831,1758895722419,311.9494608,0.00022844,2]
[387825832,1758895722537,1187.70453742,0.00021372,2]
[387825834,1758895778439,5000.0,0.00023831,2]
[387825835,1758895778600,563089.38595571,0.00031759,30]
[387825858,1758895832122,-704.25000015,0.00024072,2]
[387825859,1758895832135,-901.08982909,0.00024072,2]
[387825860,1758895832146,-1011.08745101,0.00024072,2]
[387825861,1758895832158,-1971.0130693,0.00024072,2]
[387825862,1758895832183,-412.55965045,0.00024072,2]
[387825863,1758895832193,-162.5293192,0.00024316,2]
[387825889,1758895838101,-1025.17521822,0.00024316,2]
[387825890,1758895838111,-160.0,0.00024695,2]
[387825891,1758895838122,-160.0,0.00024695,2]
[387825892,1758895838132,-1187.70453742,0.00025788,4]
[387825893,1758895838141,-1200.0,0.00026485,2]
[387825894,1758895838152,-300.0,0.00026486,2]
[387825895,1758895838161,-300.0,0.00026486,2]
[387825896,1758895838170,-300.0,0.00026486,2]
[387825898,1758895838180,-6270.9775951,0.00026487,2]
[387825899,1758895838189,-300.0,0.00026574,2]
[387825900,1758895838199,-1200.0,0.00026768,2]
[387825901,1758895838209,-1187.70453742,0.00027259,7]
[387825903,1758895838219,-1475.5069809,0.00028492,2]
[387825904,1758895838228,-200.0,0.0002866,15]
[387825905,1758895838238,-1187.70453742,0.00028731,10]
[387825906,1758895838248,-185.0,0.00028776,2]
[387825907,1758895838257,-480.0,0.00028946,2]
[387825908,1758895838268,-1000.0,0.00029099,30]
[387825909,1758895838277,-249.88593227,0.00029999,2]
[387825910,1758895838287,-500.0,0.00029999,2]
[387825911,1758895838296,-587.49860473,0.00029999,2]
[387825912,1758895838306,-500.0,0.00029999,2]
[387825914,1758895838316,-500.0,0.00029999,2]
[387825915,1758895838325,-500.0,0.00029999,2]
[387825917,1758895838335,-500.0,0.00029999,2]
[387825919,1758895838345,-500.0,0.00029999,2]
[387825920,1758895838355,-10000.0,0.0003,30]
[387825921,1758895838364,-10000.0,0.0003,60]
[387825922,1758895838374,-160.0,0.0003,2]
[387825923,1758895838383,-1108.90033628,0.00030103,2]
[387825924,1758895838392,-1187.70453742,0.00030203,13]
[387825925,1758895838402,-260.0,0.00030548,2]
[387825926,1758895838411,-360.0,0.00031096,2]
[387825927,1758895838421,-150.0,0.00031548,2]
[387825928,1758895838431,-163.0,0.00031548,2]
[387825929,1758895838440,-260.0,0.00031644,2]
[387825930,1758895838450,-174.65,0.00031675,30]
[387825931,1758895838459,-175.969,0.00031675,30]
[387825932,1758895838468,-1187.70453742,0.00031675,16]
[387825933,1758895838477,-3050.26975052,0.00031692,2]
[387825934,1758895838487,-12472.69420794,0.00031692,2]
[387825935,1758895838497,-3050.2697505,0.00031712,2]
[387825936,1758895838506,-3050.2697505,0.00031733,2]
[387825937,1758895838515,-3050.2697505,0.00031753,2]
[387825938,1758895838525,-155.0,0.00031759,2]
[387825939,1758895838535,-501.70713422,0.00031773,5]
[387825940,1758895838544,-500.0,0.00031773,5]
[387825941,1758895838554,-500.0,0.00031773,5]
[387825943,1758895838563,-500.0,0.00031773,5]
[387825945,1758895838573,-500.0,0.00031773,2]
[387825947,1758895838583,-500.0,0.00031773,5]
[387825949,1758895838592,-3050.2697505,0.00031773,2]
[387825950,1758895838601,-2535.3270927,0.00031782,2]
[387825951,1758895838611,-1690.2180618,0.00031783,2]
[387825952,1758895838620,-306031.58358224,0.00031792,15]
[387825953,1758895838631,-16320.91183825,0.00031792,15]
[387825954,1758895838642,-8502.828686,0.00031792,15]
[387825955,1758895838653,-23312.48044269,0.00031792,15]
[387825956,1758895838664,-9586.19409738,0.00031792,15]
[387826124,1758895844128,-23480.619995,0.00031792,15]
[387826137,1758895844253,-50589.07517998,0.00031792,15]
[387826139,1758895844263,-500.0,0.00031792,5]
[387826141,1758895844273,-157799.39150801,0.00031793,60]
[387826300,1758895846350,-142200.60849199,0.00031793,60]
[387826302,1758895846359,-500.0,0.00031793,60]
[387826304,1758895846369,-538.36,0.000318,2]
[387826306,1758895846379,-1408.5150515,0.00031824,2]
[387826308,1758895846388,-239598.49645651,0.00031834,20]
[387826310,1758895846400,-23955.36819661,0.00031834,20]
[387826313,1758895846411,-10746.64165883,0.00031834,20]
[387826320,1758895846476,-680.90757339,0.00031834,20]
[387826322,1758895846487,-3119.16652383,0.00031834,20]
[387826325,1758895846504,-3494.65896762,0.00031834,20]
[387826465,1758895892368,801.5185636,0.000199,2]
[387826466,1758895892523,801.51856353,0.00022844,2]
[387826467,1758895892872,801.51856353,0.00021372,2]
[387826468,1758896005782,277.0,0.00031752,120]
[387826473,1758896063613,375.30873256,0.000199,2]
[387826474,1758896246116,510.33651136,0.000199,2]
[387826475,1758896246361,210.1550672,0.00021372,2]
[387826476,1758896246386,300.18144399,0.00021372,2]
[387826477,1758896246467,510.33651119,0.00022844,2]
[387826483,1758896426691,374.24677495,0.000199,2]
[387826484,1758896426948,374.24677487,0.00021372,2]
[387826485,1758896427059,374.24677487,0.00022844,2]
[387826494,1758896487842,690.99391576,0.00023831,2]
[387826496,1758896603485,563.28046093,0.000199,2]
[387826497,1758896604083,563.28046082,0.00022844,2]
[387826498,1758896604143,563.28046082,0.00021372,2]
[387826499,1758896661665,5000.0,0.00023831,2]
[387826500,1758896669966,685.9164218,0.00023831,2]
[387826501,1758896669990,4314.0835782,0.00023831,2]
[387826502,1758896686455,5000.0,0.00023831,2]
[387826503,1758896694798,1425.25783856,0.00023831,2]
[387826504,1758896712361,5000.0,0.00023831,2]
[387826514,1758896736109,5000.0,0.00023831,2]
[387826525,1758896760508,0.01,0.00023831,2]
[387826527,1758896760533,4999.99,0.00023831,2]
[387826543,1758896779441,469.40038421,0.000199,2]
[387826544,1758896780004,469.40038401,0.00021372,2]
[387826545,1758896784868,4061.21923178,0.00023831,2]
[387826546,1758896784997,938.78076822,0.00023831,2]
[387826549,1758896809423,5000.0,0.00023831,2]
[387826550,1758896832945,4061.22923178,0.00023831,2]
[387826551,1758896832969,938.77076822,0.00023831,2]
[387826553,1758896857488,5000.0,0.00023831,2]
[387826556,1758896872126,1000.0,0.000191,2]
[387826557,1758896882512,3061.23923178,0.00023831,2]
[387826558,1758896882538,1938.76076822,0.00023831,2]
[387826560,1758896906471,5000.0,0.00023831,2]
[387826562,1758896914429,3061.24923178,0.00023831,2]
[387826563,1758896914453,1938.75076822,0.00023831,2]
[387826566,1758896921298,300.0,0.00025,30]
[387826579,1758896923137,2990.01102627,0.000203,2]
[387826581,1758896924891,1025.33571371,0.00024,30]
[387826582,1758896928838,160.0,0.00023831,2]
[387826583,1758896930775,4911.24820551,0.00023831,2]
[387826584,1758896930800,88.75179449,0.00023831,2]
[387826585,1758896939866,5000.0,0.00023831,2]
[387826586,1758896948552,277.54109375,0.000199,2]
[387826587,1758896948666,277.54109352,0.00022844,2]
[387826588,1758896949168,277.54109352,0.00021372,2]
[387826591,1758896953279,1762.0,0.00023831,2]
[387826592,1758896956490,2316.63492472,0.00023831,2]
[387826593,1758896956515,2683.36507528,0.00023831,2]
[387826594,1758896980614,5000.0,0.00023831,2]
[387826595,1758897005230,2316.64492472,0.00023831,2]
[387826596,1758897005254,2683.35507528,0.00023831,2]
[387826597,1758897028572,5000.0,0.00023831,2]
[387826622,1758897032458,-171.68809145,0.00023972,2]
[387826623,1758897032468,-233.71402077,0.0002407,2]
[387826624,1758897032479,-277.54109352,0.00024316,2]
[387826625,1758897032488,-174.714,0.00024415,2]
[387826627,1758897032498,-277.54109352,0.00025788,4]
[387826629,1758897032507,-1670.473432,0.00026,30]
[387826631,1758897032518,-417.15472785,0.000266,2]
[387826633,1758897032529,-160.0,0.000266,2]
[387826635,1758897032539,-160.0,0.000266,2]
[387826637,1758897032548,-160.0,0.00026603,2]
[387826639,1758897032557,-619.660549,0.00026616,2]
[387826641,1758897032567,-277.54109352,0.00027259,7]
[387826643,1758897032576,-666.0,0.00027956,2]
[387826646,1758897032585,-200.0,0.000281,2]
[387826649,1758897032595,-286.21,0.0002851,2]
[387826650,1758897032604,-277.54109352,0.00028731,10]
[387826653,1758897032614,-183.185783,0.00028957,60]
[387826654,1758897032623,-200.0,0.000291,2]
[387826657,1758897032632,-200.0,0.000301,2]
[387826659,1758897032642,-277.54109352,0.00030203,13]
[387826660,1758897032651,-200.0,0.00031,2]
[387826662,1758897032660,-1253.66700833,0.00031584,28]
[387826664,1758897032670,-1201.15860292,0.00031642,2]
[387826667,1758897032680,-8315.12947196,0.00031642,2]
[387826669,1758897032689,-183.38242098,0.00031642,2]
[387826670,1758897032701,-2318.02,0.00031648,6]
[387826672,1758897032710,-277.54109352,0.00031675,16]
[387826674,1758897032719,-753.22,0.00031724,3]
[387826676,1758897032729,-236.69,0.00031724,10]
[387826678,1758897032738,-174.92015259,0.00031733,2]
[387826680,1758897032747,-500.0,0.00031733,2]
[387826682,1758897032757,-511.24902332,0.00031733,2]
[387826684,1758897032766,-500.0,0.00031733,2]
[387826685,1758897032775,-500.0,0.00031733,2]
[387826686,1758897032783,-500.0,0.00031733,2]
[387826687,1758897032793,-174.65,0.00031733,30]
[387826688,1758897032801,-10189.86615429,0.00031734,2]
[387826689,1758897032812,-16163.26742163,0.00031734,2]
[387826820,1758897038322,-1247.47742291,0.00031131,2]
[387826821,1758897038332,-7594.22960698,0.00031734,2]
[387826847,1758897040299,-2853.60001914,0.00031734,2]
[387826860,1758897043372,-333199.03679796,0.00031734,2]
[387826861,1758897043382,-47721.65,0.00031742,2]
[387826862,1758897043391,-155.0,0.00031742,2]
[387826863,1758897043401,-479.999999,0.00031742,2]
[387826864,1758897043411,-479.999999,0.00031742,2]
[387826865,1758897043512,-9687.8963489,0.00031761,2]
[387826866,1758897043523,-50139.0898186,0.00031761,2]
[387826867,1758897043533,-502.09635083,0.00031791,2]
[387826868,1758897043543,-1000.0,0.00031791,2]
[387826869,1758897043552,-1000.0,0.00031791,2]
[387826870,1758897043562,-334.0,0.00031791,2]
[387826871,1758897043572,-155998.45052959,0.00031834,20]
[387826872,1758897043581,-4000.0,0.00031899,6]
[387826873,1758897043590,-484.52,0.000319,2]
[387826874,1758897043600,-177.4108125,0.00032,120]
[387826875,1758897043609,-339.25384113,0.00032,120]
[387826876,1758897043619,-217.99592756,0.00032,120]
[387826877,1758897043628,-319.99999999,0.00032,120]
[387826878,1758897043638,-500.0,0.00032,120]
[387826879,1758897043647,-467.17322673,0.00032028,2]
[387826880,1758897043656,-840.91180811,0.00032028,2]
[387826881,1758897043665,-1494.95432553,0.00032028,2]
[387826882,1758897043675,-177.4108125,0.000323,120]
[387826883,1758897043684,-339.25384113,0.000323,120]
[387826884,1758897043694,-217.99592756,0.000323,120]
[387826885,1758897043705,-177.4108125,0.000326,120]
[387826886,1758897043715,-339.25384113,0.000326,120]
[387826887,1758897043724,-500.0,0.000326,60]
[387826888,1758897043734,-500.0,0.000326,60]
[387826889,1758897043745,-225.36110923,0.000326,60]
[387826890,1758897043755,-151.0,0.000326,60]
[387826891,1758897043764,-151.0,0.000326,60]
[387826892,1758897043774,-151.0,0.000326,60]
[387826893,1758897043783,-151.0,0.000326,60]
[387826894,1758897043792,-151.0,0.000326,60]
[387826895,1758897043801,-158.26373854,0.000326,60]
[387826896,1758897043811,-151.0,0.000326,60]
[387826897,1758897043820,-151.0,0.000326,2]
[387826898,1758897043829,-151.0,0.000326,60]
[387826899,1758897043839,-500.0,0.000326,60]
[387826900,1758897043848,-151.0,0.000326,60]
[387826901,1758897043857,-4000.0,0.00032716,6]
[387826902,1758897043867,-500.0,0.00032767,5]
[387826903,1758897043876,-500.0,0.00032767,5]
[387826904,1758897043885,-500.0,0.00032813,5]
[387826905,1758897043895,-500.0,0.00032874,60]
[387826906,1758897043904,-500.0,0.00032874,60]
[387826907,1758897043914,-151.0,0.00032874,60]
[387826908,1758897043923,-151.0,0.00032874,60]
[387826909,1758897043932,-500.0,0.00032874,60]
[387826910,1758897043942,-151.0,0.00032874,60]
[387826911,1758897043951,-500.0,0.00032876,120]
[387826912,1758897043962,-549.187978,0.00032877,2]
[387826913,1758897043971,-500.0,0.00032892,2]
[387826914,1758897043981,-151.0,0.00032892,2]
[387826915,1758897043990,-151.0,0.00032892,2]
[387826916,1758897043999,-169.0,0.00032892,2]
[387826917,1758897044009,-151.0,0.00032892,2]
[387826919,1758897044018,-500.0,0.00032892,2]
[387826921,1758897044027,-151.0,0.00032892,2]
[387826923,1758897044035,-151.0,0.00032892,2]
[387826925,1758897044045,-151.75518171,0.00032892,2]
[387826926,1758897044054,-151.0,0.00032892,2]
[387826929,1758897044063,-151.0,0.00032892,2]
[387826931,1758897044072,-151.0,0.00032892,2]
[387826932,1758897044081,-152.29099865,0.00032892,2]
[387826933,1758897044090,-151.0,0.00032892,2]
[387826934,1758897044099,-151.0,0.00032892,2]
[387826935,1758897044109,-151.66116134,0.00032892,2]
[387826936,1758897044118,-500.0,0.00032942,5]
[387826937,1758897044127,-329.89320392,0.00032942,2]
[387826938,1758897044138,-339.25384113,0.00033,120]
[387826939,1758897044147,-277.54109352,0.00033147,19]
[387826940,1758897044161,-298.48733986,0.00033148,60]
[387826941,1758897044171,-500.0,0.00033148,60]
[387826942,1758897044180,-151.0,0.00033148,60]
[387826943,1758897044189,-406.0,0.00033148,60]
[387826944,1758897044198,-151.0,0.00033148,60]
[387826945,1758897044208,-500.0,0.00033166,2]
[387826946,1758897044217,-500.0,0.00033166,2]
[387826947,1758897044227,-151.0,0.00033166,2]
[387826948,1758897044236,-199.02807492,0.00033166,2]
[387826949,1758897044245,-255.4239308,0.00033166,2]
[387826950,1758897044254,-151.0,0.00033166,2]
[387826951,1758897044263,-151.0,0.00033166,2]
[387826952,1758897044272,-339.25384113,0.000333,120]
[387826953,1758897044281,-1000.0,0.00033315,5]
[387826954,1758897044290,-1000.0,0.00033315,5]
[387826955,1758897044299,-1000.0,0.00033361,5]
[387826956,1758897044308,-500.0,0.00033422,60]
[387826957,1758897044317,-198.0,0.00033422,60]
[387826958,1758897044326,-198.35126849,0.00033422,60]
[387826959,1758897044335,-201.29659606,0.0003344,2]
[387826960,1758897044344,-151.0,0.0003344,2]
[387826961,1758897044353,-151.0,0.0003344,2]
[387826962,1758897044363,-151.0,0.0003344,2]
[387826963,1758897044372,-1000.0,0.0003349,5]
[387826964,1758897044381,-500.0,0.0003367,7]
[387826965,1758897044390,-500.0,0.00033696,60]
[387826966,1758897044399,-500.0,0.00033698,120]
[387826967,1758897044408,-200.51644454,0.00033714,2]
[387826968,1758897044417,-151.0,0.00033714,2]
[387826969,1758897044427,-192.04475526,0.00033763,2]
[387826970,1758897044437,-5000.0,0.00033834,4]
[387826971,1758897044448,-1500.0,0.00033863,5]
[387826972,1758897044458,-500.0,0.00033863,5]
[387826973,1758897044467,-1500.0,0.00033909,5]
[387826974,1758897044476,-500.0,0.0003397,60]
[387826975,1758897044486,-198.0,0.00033988,2]
[387826976,1758897044495,-1500.0,0.00034038,5]
[387826977,1758897044505,-183.38242098,0.00034166,2]
[387826978,1758897044515,-500.0,0.00034232,7]
[387826979,1758897044524,-500.0,0.00034244,60]
[387826980,1758897044533,-500.0,0.00034353,2]
[387826981,1758897044543,-2000.0,0.00034411,5]
[387826982,1758897044552,-2008.35320698,0.00034457,5]
[387826983,1758897044562,-484.52,0.000345,14]
[387826984,1758897044571,-500.0,0.00034509,7]
[387826985,1758897044580,-500.0,0.00034518,60]
[387826986,1758897044590,-500.0,0.0003452,120]
[387826987,1758897044599,-2000.0,0.00034586,5]
[387826988,1758897044608,-277.54109352,0.00034619,23]
[387826989,1758897044617,-630.0,0.00034792,60]
[387826990,1758897044627,-200.0,0.00034812,2]
[387826991,1758897044636,-350.0,0.00034812,2]
[387826992,1758897044645,-381.59001954,0.00034812,2]
[387826993,1758897044654,-500.0,0.00034812,2]
[387826994,1758897044663,-200.0,0.00034812,2]
[387826995,1758897044672,-237.20704903,0.00034812,2]
[387826996,1758897044682,-350.0,0.00034812,2]
[387826997,1758897044691,-200.0,0.00034812,2]
[387826998,1758897044701,-500.0,0.00034812,2]
[387826999,1758897044713,-350.0,0.00034812,2]
[387827000,1758897044722,-200.0,0.00034812,2]
[387827001,1758897044732,-350.0,0.00034812,2]
[387827002,1758897044742,-200.0,0.00034812,2]
[387827003,1758897044751,-350.0,0.00034812,2]
[387827004,1758897044763,-200.0,0.00034812,2]
[387827006,1758897044772,-350.0,0.00034812,2]
[387827008,1758897044782,-200.0,0.00034812,2]
[387827009,1758897044791,-350.0,0.00034812,2]
[387827011,1758897044800,-200.0,0.00034812,2]
[387827012,1758897044809,-350.0,0.00034812,2]
[387827013,1758897044818,-200.0,0.00034812,2]
[387827014,1758897044827,-256.14491206,0.00034812,2]
[387827015,1758897044837,-350.0,0.00034812,2]
[387827017,1758897044846,-350.0,0.00034812,2]
[387827019,1758897044855,-350.0,0.00034812,2]
[387827021,1758897044865,-350.0,0.00034812,2]
[387827023,1758897044874,-1000.0,0.00034812,2]
[387827025,1758897044884,-1000.0,0.00034812,2]
[387827026,1758897044894,-1000.0,0.00034812,2]
[387827027,1758897044903,-1000.0,0.00034812,2]
[387827028,1758897044913,-1000.0,0.00034812,2]
[387827029,1758897044923,-500.0,0.00034812,2]
[387827030,1758897044932,-1000.0,0.00034812,2]
[387827031,1758897044942,-500.0,0.00034812,2]
[387827033,1758897044953,-1000.0,0.00034812,2]
[387827034,1758897044966,-500.0,0.00034812,2]
[387827035,1758897044976,-1000.0,0.00034812,2]
[387827036,1758897044986,-500.0,0.00034812,2]
[387827037,1758897044995,-1000.0,0.00034812,2]
[387827038,1758897045004,-500.0,0.00034812,2]
[387827039,1758897045014,-500.0,0.00034812,2]
[387827040,1758897045023,-1000.0,0.00034812,2]
[387827042,1758897045032,-1000.0,0.00034812,2]
[387827043,1758897045114,-500.0,0.00034812,2]
[387827044,1758897045125,-1000.0,0.00034812,2]
[387827045,1758897045135,-500.0,0.00034812,2]
[387827046,1758897045144,-500.0,0.00034812,2]
[387827047,1758897045154,-1000.0,0.00034812,2]
[387827048,1758897045163,-500.0,0.00034812,2]
[387827049,1758897045172,-757.08192936,0.00034812,2]
[387827050,1758897045181,-500.0,0.00034812,2]
[387827051,1758897045190,-500.0,0.00034812,2]
[387827052,1758897045200,-330.8056317,0.00034958,5]
[387827053,1758897045210,-500.0,0.00034958,5]
[387827054,1758897045220,-1201.15860285,0.00034965,2]
[387827055,1758897045229,-300.91565364,0.00035,120]
[387827056,1758897045238,-100000.0,0.00035,25]
[387827057,1758897045247,-500.0,0.00035,5]
[387827058,1758897045257,-151.0,0.00035,7]
[387827059,1758897045266,-151.0,0.00035,7]
[387827060,1758897045276,-151.0,0.00035,7]
[387827061,1758897045285,-151.0,0.00035,7]
[387827062,1758897045294,-151.0,0.00035,7]
[387827063,1758897045303,-151.0,0.00035,7]
[387827064,1758897045312,-151.0,0.00035,7]
[387827065,1758897045322,-151.0,0.00035,7]
[387827066,1758897045332,-159.610699,0.00035,7]
[387827067,1758897045341,-151.0,0.00035,7]
[387827068,1758897045351,-151.0,0.00035,7]
[387827069,1758897045360,-151.0,0.00035,7]
[387827070,1758897045369,-151.0,0.00035,7]
[387827071,1758897045379,-151.0,0.00035,7]
[387827072,1758897045388,-151.0,0.00035,7]
[387827073,1758897045397,-151.0,0.00035,7]
[387827074,1758897045407,-151.0,0.00035,7]
[387827075,1758897045417,-151.0,0.00035,7]
[387827076,1758897045426,-151.0,0.00035,7]
[387827077,1758897045439,-151.0,0.00035,7]
[387827078,1758897045449,-152.640007,0.00035,7]
[387827079,1758897045459,-224.470643,0.00035,7]
[387827080,1758897045469,-151.0,0.00035,7]
[387827081,1758897045479,-186.813061,0.00035,7]
[387827082,1758897045488,-151.0,0.00035,7]
[387827083,1758897045498,-151.0,0.00035,7]
[387827084,1758897045508,-151.0,0.00035,7]
[387827085,1758897045519,-151.0,0.00035,7]